fUSD/lending_fUSD_20240220
["ID","MTS","AMOUNT","RATE_DAILY","PERIOD"]
[314622429,1708460947238,-3195.24489,0.00034931,2]
[314622430,1708460947260,-9635.471388,0.00034931,2]
[314622431,1708460947279,-1191.254706,0.00034931,2]
[314622432,1708460947300,-400.0,0.00035067,3]
[314622433,1708460947320,-400.0,0.00035067,3]
[314622434,1708460947341,-3994.056113,0.00035068,2]
[314622435,1708460947363,-12044.339235,0.00035068,2]
[314622436,1708460947383,-1489.068383,0.00035068,2]
[314622437,1708460947403,-212.7581,0.00035242,2]
[314622438,1708460947424,-5591.678558,0.00035342,2]
[314622439,1708460947445,-16862.074929,0.00035342,2]
[314622440,1708460947465,-72.921968,0.00035342,2]
[314622441,1708460950329,-2011.773768,0.00035342,2]
[314622442,1708460950352,-150.0,0.000362,26]
[314622443,1708460950378,-612.55,0.00036354,2]
[314622444,1708460950398,-158.94,0.00037671,2]
[314622445,1708460950418,-499.99,0.00038105,2]
[314622446,1708460950438,-5373.02,0.00038182,2]
[314622447,1708460950458,-250.0,0.0003819,2]
[314622448,1708460950478,-592.47870003,0.0003819,2]
[314622449,1708460950505,-250.0,0.00038194,2]
[314622450,1708460950527,-1090.8,0.00038221,2]
[314622451,1708460950547,-200.0,0.00038231,2]
[314622452,1708460950569,-2000.0,0.00038245,2]
[314622453,1708460950594,-434.47,0.00038254,10]
[314622454,1708460950619,-172.94,0.00038258,2]
[314622455,1708460950640,-23900.0,0.00038264,2]
[314622456,1708460950661,-786.03,0.0003829,2]
[314622457,1708460950682,-151.49,0.00038298,2]
[314622458,1708460950703,-266.0,0.00038311,2]
[314622459,1708460950726,-150.0,0.00038352,2]
[314622460,1708460950747,-150.36,0.00038356,2]
[314622461,1708460950768,-1033.32,0.00038356,15]
[314622462,1708460950789,-612.55,0.00038617,2]
[314622463,1708460950810,-500.0,0.00038896,2]
[314622464,1708460950829,-4000.0,0.00038896,30]
[314622465,1708460950849,-794.79,0.00038911,2]
[314622466,1708460950870,-181.72,0.00038961,2]
[314622467,1708460950890,-321.36,0.0003926,2]
[314622468,1708460950909,-734.0,0.00039389,2]
[314622469,1708460950929,-361.6,0.000394,2]
[314622470,1708460950948,-592.47870002,0.00039436,2]
[314622471,1708460950968,-205.14,0.00039726,2]
[314622472,1708460950988,-155.0,0.0003987,2]
[314622473,1708460951008,-500.0,0.000399,14]
[314622474,1708460951027,-1200.0,0.000399,120]
[314622475,1708460951050,-207.0,0.00039964,2]
[314622476,1708460951288,-150.0,0.00040025,2]
[314622477,1708460951313,-5137.78744821,0.000405,2]
[314622478,1708460951337,-5000.0,0.000405,40]
[314622479,1708460951359,-1000.0,0.0004058,2]
[314622480,1708460951379,-1248.04399337,0.00040596,9]
[314622481,1708460951400,-5730.92233242,0.00040596,3]
[314622482,1708460951424,-980.2,0.000406,4]
[314622483,1708460951447,-980.2,0.000406,4]
[314622484,1708460951469,-980.2,0.000406,4]
[314622485,1708460951495,-980.2,0.000406,4]
[314622486,1708460951517,-980.2,0.000406,4]
[314622487,1708460951539,-980.2,0.000406,4]
[314622488,1708460951561,-980.2,0.000406,4]
[314622489,1708460951585,-980.2,0.000406,4]
[314622490,1708460951610,-980.2,0.000406,4]
[314622491,1708460951632,-980.2,0.000406,4]
[314622492,1708460951656,-980.2,0.000406,4]
[314622493,1708460951679,-980.2,0.000406,4]
[314622494,1708460951703,-980.2,0.000406,4]
[314622495,1708460951726,-980.2,0.000406,4]
[314622496,1708460951751,-980.2,0.000406,4]
[314622497,1708460951776,-980.2,0.000406,4]
[314622498,1708460951799,-980.2,0.000406,4]
[314622499,1708460951824,-980.2,0.000406,4]
[314622500,1708460951845,-980.2,0.000406,4]
[314622501,1708460951868,-980.2,0.000406,4]
[314622502,1708460951888,-153.15,0.000406,4]
[314622503,1708460951908,-5893.936,0.00040679,2]
[314622504,1708460951928,-45546.72905795,0.0004068,2]
[314622525,1708461031853,-205.14,0.00039726,2]
[314622526,1708461031862,-241.21857574,0.00039872,10]
[314622527,1708461031874,-1258.78142426,0.00039872,10]
[314622528,1708461031884,-787.2,0.00039877,2]
[314622529,1708461031893,-440.01,0.00039907,2]
[314622530,1708461031902,-307.36,0.000402,2]
[314622531,1708461031912,-1976.13995649,0.0004068,4]
[314622532,1708461031924,-567.47585182,0.0004068,4]
[314622533,1708461031997,-0.11863162,0.0004068,4]
[314622534,1708461032016,-268.75605394,0.0004068,4]
[314622535,1708461032030,-583.22113,0.0004068,4]
[314622536,1708461032041,-189.91165421,0.0004068,4]
[314622537,1708461032050,-592.47870002,0.00040681,2]
[314622538,1708461032059,-321.36,0.00040733,2]
[314622539,1708461032068,-1136.66891314,0.00040764,5]
[314622540,1708461032205,-463.65813376,0.00040764,5]
[314622541,1708461032214,-606.4546835,0.00040764,13]
[314622542,1708461032224,-250.2613,0.0004077,2]
[314622543,1708461032233,-8575.11430121,0.0004078,2]
[314622544,1708461032269,-2897.5251929,0.0004078,2]
[314622545,1708461032280,-307.14875415,0.0004078,2]
[314622546,1708461032295,-1398.43513135,0.0004078,2]
[314622547,1708461032309,-3531.24416795,0.0004078,2]
[314622548,1708461032357,-7590.47545244,0.0004078,2]
[314622549,1708461032365,-150.99,0.00040781,30]
[314622550,1708461032374,-150.99,0.00040781,2]
[314622551,1708461032383,-175.26499488,0.000408,2]
[314622552,1708461032392,-175.26499487,0.00040834,2]
[314622553,1708461032401,-500.0,0.00040859,31]
[314622554,1708461032410,-444.76875813,0.00040859,31]
[314622555,1708461032419,-21935.63368047,0.0004086,7]
[314622565,1708461037843,-204.0,0.00039964,2]
[314622566,1708461037852,-1611.32353747,0.0004086,7]
[314622567,1708461037912,-1277.91057938,0.0004086,7]
[314622568,1708461037996,-340.73018423,0.0004086,7]
[314622569,1708461038108,-1517.40690279,0.0004086,7]
[314622570,1708461038120,-1394.36673266,0.0004086,7]
[314622571,1708461038134,-279.39025,0.0004086,7]
[314622573,1708461038663,-7818.02537183,0.0004086,7]
[314622575,1708461040599,-355.8636597,0.0004086,7]
[314622576,1708461040612,-477.20415807,0.0004086,7]
[314622577,1708461040657,-1878.22799218,0.0004086,7]
[314622578,1708461041330,-15137.07714408,0.0004086,7]
[314622579,1708461041385,-375.66145804,0.0004086,7]
[314622580,1708461041397,-11619.4349343,0.0004086,7]
[314622581,1708461041407,-180.81705309,0.00040864,15]
[314622582,1708461041417,-40084.3299633,0.0004087,7]
[314622583,1708461041428,-2429.87254861,0.0004087,7]
[314622584,1708461041451,-12666.41204304,0.0004087,7]
[314622585,1708461041464,-604.57016637,0.0004087,7]
[314622586,1708461041504,-1074.1348849,0.0004087,7]
[314622589,1708461041516,-3007.35956167,0.0004087,7]
[314622601,1708461042842,-750.0,0.00039993,2]
[314622602,1708461042852,-5929.49,0.00039993,2]
[314622603,1708461042861,-1665.027067,0.00040656,2]
[314622604,1708461042872,-72169.83400211,0.0004087,7]
[314622605,1708461042881,-152.56985561,0.00040879,10]
[314622606,1708461042890,-618.8102208,0.00040879,2]
[314622607,1708461042899,-161.31172468,0.00040879,31]
[314622608,1708461042908,-11832.5038,0.0004088,2]
[314622609,1708461042917,-245000.0,0.0004088,2]
[314622610,1708461042926,-2446.14809598,0.0004088,15]
[314622611,1708461042936,-612.55,0.00040881,2]
[314622612,1708461042945,-500.0,0.000409,14]
[314622613,1708461042955,-5000.0,0.00040925,3]
[314622614,1708461042964,-606.24229482,0.00040935,2]
[314622615,1708461042974,-683.29148754,0.00040935,2]
[314622616,1708461042983,-437.25800202,0.00040935,2]
[314622617,1708461042992,-175.26499487,0.00040936,2]
[314622618,1708461043001,-608.7912172,0.00040936,33]
[314622619,1708461043010,-852.19386208,0.00040936,2]
[314622620,1708461043020,-59752.17086326,0.0004096,7]
[314622621,1708461043057,-427.3596132,0.0004096,7]
[314622622,1708461043068,-2756.5299557,0.0004096,7]
[314622623,1708461043088,-2459.53667299,0.0004096,7]
[314622624,1708461043186,-400.36535376,0.0004096,7]
[314622625,1708461043198,-446.51173508,0.0004096,7]
[314622626,1708461043210,-3896.94178121,0.0004096,7]
[314622633,1708461045898,-3585.62327808,0.0004068,4]
[314622634,1708461045909,-6511.32720099,0.0004096,7]
[314622635,1708461045957,-909.18734185,0.0004096,7]
[314622636,1708461045970,-574.26,0.0004096,7]
[314622637,1708461045982,-575.7900005,0.0004096,7]
[314622638,1708461045994,-417.927952,0.0004096,7]
[314622639,1708461046007,-272.16,0.0004096,7]
[314622640,1708461046020,-5197.5,0.0004096,7]
[314622641,1708461046042,-47438.94469946,0.0004096,7]
[314622642,1708461046053,-264073.026341,0.0004097,7]
[314622643,1708461046063,-250.0,0.00040979,2]
[314622644,1708461046073,-50967.15605967,0.0004098,2]
[314622645,1708461046084,-451.47372484,0.0004098,2]
[314622646,1708461046097,-746.35338229,0.0004098,2]
[314622647,1708461046199,-511268.52480847,0.0004098,2]
[314622648,1708461046209,-220.68427993,0.0004098,2]
[314622649,1708461046219,-3000.0,0.0004098,7]
[314622650,1708461046229,-1934.16,0.00041,7]
[314622651,1708461046238,-2079.47,0.00041,7]
[314622652,1708461046248,-1150.0,0.00041,3]
[314622653,1708461046258,-66018.2565852,0.00041015,7]
[314622654,1708461046268,-7255.24162358,0.00041035,2]
[314622655,1708461046277,-440272.99681098,0.00041035,4]
[314622656,1708461046289,-2970.79999997,0.00041035,4]
[314622657,1708461046301,-1231.94498982,0.00041035,4]
[314622658,1708461046313,-2783.18280622,0.00041035,4]
[314622659,1708461129910,409.224,0.00027297,14]
[314622662,1708461365129,7700.37672948,0.000239,2]
[314622663,1708461397568,750.0,0.00025,3]
[314622664,1708461450926,2335.13715985,0.00025,2]
[314622665,1708461495134,-800.0,0.00027,3]
[314622671,1708462146191,-176.91,0.00027397,2]
[314622672,1708462146212,-158.94,0.00027397,2]
[314622673,1708462146234,-850.0,0.00029,3]
[314622674,1708462146254,-150.0,0.00030997,2]
[314622675,1708462146274,-150.0,0.00030997,2]
[314622676,1708462146293,-300.0,0.00030997,2]
[314622677,1708462146314,-9850.8987842,0.00030998,5]
[314622678,1708462148087,-1279.26880458,0.00030998,5]
[314622679,1708462148107,-4122.45219542,0.00030999,4]
[314622680,1708462149124,-4951.55477507,0.00030999,4]
[314622681,1708462149145,-900.0,0.00031,3]
[314622682,1708462149164,-217.96215078,0.000338,2]
[314622683,1708462149183,-210.0,0.00034097,3]
[314622684,1708462149203,-150.0,0.00034548,10]
[314622685,1708462149223,-158.94,0.00035616,2]
[314622686,1708462149243,-715.76,0.00035955,2]
[314622687,1708462149262,-150.0,0.00036899,2]
[314622694,1708462234907,-637.63223231,0.00037037,2]
[314622695,1708462234917,-1887.17581264,0.00037037,2]
[314622696,1708462234969,-163.61418736,0.00037037,2]
[314622697,1708462234979,-152.52959547,0.00037545,2]
[314622698,1708462234988,-2000.0,0.0003763,2]
[314622699,1708462234997,-207.0,0.00037634,2]
[314622700,1708462235006,-406.98,0.00037645,2]
[314622701,1708462235015,-629.76,0.00037696,2]
[314622702,1708462235026,-500.0,0.00037724,2]
[314622703,1708462235035,-500.0,0.00037726,37]
[314622704,1708462235046,-182.15,0.00037755,2]
[314622705,1708462235056,-507.15,0.00037784,2]
[314622706,1708462235066,-1028.52,0.00037784,2]
[314622707,1708462235078,-1337.24,0.00037813,2]
[314622708,1708462235089,-150.0,0.00037817,2]
[314622709,1708462235099,-1197.57,0.0003783,2]
[314622710,1708462235108,-200.0,0.00037841,2]
[314622711,1708462235118,-177.26,0.00037848,2]
[314622712,1708462235128,-152.52959545,0.00037854,2]
[314622713,1708462235138,-1000.0,0.00037898,2]
[314622714,1708462235148,-23900.0,0.00037899,2]
[314622715,1708462235158,-14465.0,0.000379,3]
[314622716,1708462235170,-2502.0,0.000379,3]
[314622717,1708462235180,-200.0,0.00037959,2]
[314622718,1708462235189,-200.0,0.00037979,2]
[314622719,1708462235200,-250.0,0.00037997,2]
[314622720,1708462235210,-15645.02,0.00038064,2]
[314622721,1708462235219,-499.99,0.00038113,2]
[314622722,1708462235230,-152.52959545,0.00038162,2]
[314622723,1708462235239,-154.53,0.00038178,2]
[314622724,1708462235249,-170.12,0.00038213,2]
[314622725,1708462235260,-2395.29,0.00038213,2]
[314622726,1708462235269,-715.76,0.00038219,2]
[314622727,1708462235279,-154.53,0.00038343,2]
[314622728,1708462235289,-1082.27,0.00038356,15]
[314622729,1708462235299,-2000.0,0.000384,2]
[314622730,1708462235308,-5000.0,0.000384,2]
[314622731,1708462235318,-152.52959545,0.00038471,2]
[314622732,1708462235328,-154.53,0.00038509,2]
[314622733,1708462235338,-1000.0,0.00038518,2]
[314622734,1708462235347,-150.36,0.00038615,2]
[314622735,1708462235357,-154.53,0.00038675,2]
[314622736,1708462235368,-588.37,0.00038736,2]
[314622738,1708462235379,-152.52959545,0.00038779,2]
[314622740,1708462235389,-250.0,0.00038809,2]
[314622741,1708462235399,-150.0,0.00038809,2]
[314622742,1708462235409,-11175.58,0.00038809,2]
[314622743,1708462235419,-685.16,0.00038809,120]
[314622744,1708462235429,-370.24,0.00038824,2]
[314622745,1708462235438,-154.53,0.00038841,2]
[314622746,1708462235449,-150.1,0.000389,2]
[314622747,1708462235459,-174.51,0.00038907,2]
[314622748,1708462235469,-909.0,0.00038907,2]
[314622749,1708462235479,-168.28,0.0003898,2]
[314622750,1708462235488,-1000.0,0.00039,8]
[314622751,1708462235498,-1004.0,0.00039,9]
[314622752,1708462235507,-154.53,0.00039007,2]
[314622753,1708462235517,-987.84,0.00039015,2]
[314622754,1708462235526,-1026.31096852,0.00039032,2]
[314622755,1708462235536,-152.52959545,0.00039088,2]
[314622756,1708462235546,-150.0,0.0003911,2]
[314622757,1708462235555,-174.51,0.00039111,2]
[314622758,1708462235565,-154.53,0.00039172,2]
[314622759,1708462235574,-244.1,0.0003926,2]
[314622760,1708462235583,-174.51,0.00039316,2]
[314622761,1708462235593,-154.53,0.00039338,2]
[314622762,1708462235603,-207.0,0.00039354,6]
[314622763,1708462235613,-152.52959545,0.00039396,2]
[314622764,1708462235623,-507.15,0.00039428,2]
[314622765,1708462235633,-1000.0,0.00039468,2]
[314622766,1708462235643,-1000.0,0.000395,8]
[314622767,1708462235652,-1000.0,0.000395,9]
[314622768,1708462235662,-154.53,0.00039504,2]
[314622769,1708462235673,-174.51,0.00039521,2]
[314622770,1708462235684,-2500.0,0.00039661,2]
[314622771,1708462235694,-154.53,0.0003967,2]
[314622772,1708462235704,-169.68,0.00039704,2]
[314622773,1708462235714,-152.52959545,0.00039705,2]
[314622774,1708462235724,-174.51,0.00039726,2]
[314622775,1708462235734,-205.14,0.00039726,2]
[314622776,1708462235743,-1243.52655653,0.00039735,9]
[314622777,1708462235753,-53854.73875585,0.00039751,10]
[314622778,1708462235773,-3530.93323558,0.00039751,10]
[314622779,1708462235909,-745.00237155,0.00039751,10]
[314622780,1708462235926,-1394.25075615,0.00039751,10]
[314622781,1708462235939,-481.13236969,0.00039751,10]
[314622782,1708462235955,-4601.96956328,0.00039751,10]
[314622783,1708462235965,-254.75579226,0.00039761,2]
[314622789,1708462238068,-354.22,0.00037784,2]
[314622790,1708462238078,-154.53,0.00039835,2]
[314622791,1708462238087,-174.51,0.0003993,2]
[314622792,1708462238097,-14357.3393449,0.0003999,10]
[314622793,1708462238108,-1000.0,0.0004,10]
[314622794,1708462238118,-300.0,0.0004,7]
[314622795,1708462238128,-1000.0,0.0004,10]
[314622796,1708462238138,-255.0,0.0004,12]
[314622797,1708462238148,-318.2318777,0.0004,2]
[314622798,1708462238158,-318.2318777,0.0004,2]
[314622799,1708462238168,-318.2318777,0.0004,2]
[314622800,1708462238182,-318.2318777,0.0004,2]
[314622801,1708462238193,-318.2318777,0.0004,2]
[314622802,1708462238202,-318.2318777,0.0004,2]
[314622803,1708462238213,-318.2318777,0.0004,2]
[314622804,1708462238223,-318.2318777,0.0004,2]
[314622805,1708462238232,-318.2318777,0.0004,2]
[314622806,1708462238242,-318.2318777,0.0004,2]
[314622807,1708462238251,-318.2318777,0.0004,2]
[314622808,1708462238261,-318.2318777,0.0004,2]
[314622809,1708462238270,-318.2318777,0.0004,2]
[314622810,1708462238280,-318.2318777,0.0004,2]
[314622811,1708462238289,-318.2318777,0.0004,2]
[314622812,1708462238299,-318.2318777,0.0004,2]
[314622813,1708462238309,-318.2318777,0.0004,2]
[314622814,1708462238319,-318.2318777,0.0004,2]
[314622815,1708462238329,-318.2318777,0.0004,2]
[314622816,1708462238338,-318.2318777,0.0004,2]
[314622817,1708462238347,-318.2318777,0.0004,2]
[314622818,1708462238357,-318.2318777,0.0004,2]
[314622819,1708462238366,-318.2318777,0.0004,2]
[314622820,1708462238375,-318.2318777,0.0004,2]
[314622821,1708462238384,-318.2318777,0.0004,2]
[314622822,1708462238394,-318.2318777,0.0004,2]
[314622823,1708462238404,-318.2318777,0.0004,2]
[314622824,1708462238413,-318.2318777,0.0004,2]
[314622825,1708462238426,-318.2318777,0.0004,2]
[314622826,1708462238435,-318.2318777,0.0004,2]
[314622827,1708462238444,-318.2318777,0.0004,2]
[314622828,1708462238454,-318.2318777,0.0004,2]
[314622829,1708462238463,-318.2318777,0.0004,2]
[314622830,1708462238473,-318.2318777,0.0004,2]
[314622831,1708462238482,-318.2318777,0.0004,2]
[314622833,1708462238491,-318.2318777,0.0004,2]
[314622835,1708462238500,-318.2318777,0.0004,2]
[314622837,1708462238509,-318.2318777,0.0004,2]
[314622839,1708462238518,-318.2318777,0.0004,2]
[314622841,1708462238527,-318.2318777,0.0004,2]
[314622843,1708462238536,-318.2318777,0.0004,2]
[314622845,1708462238546,-318.2318777,0.0004,2]
[314622846,1708462238555,-318.2318777,0.0004,2]
[314622847,1708462238564,-318.2318777,0.0004,2]
[314622848,1708462238573,-318.2318777,0.0004,2]
[314622849,1708462238582,-318.2318777,0.0004,2]
[314622850,1708462238591,-318.2318777,0.0004,2]
[314622851,1708462238601,-318.2318777,0.0004,2]
[314622852,1708462238611,-318.2318777,0.0004,2]
[314622853,1708462238620,-318.2318777,0.0004,2]
[314622854,1708462238629,-154.53,0.00040001,2]
[314622855,1708462238639,-152.52959545,0.00040013,2]
[314622856,1708462238648,-599.86201954,0.00040039,12]
[314622857,1708462238658,-3589.33483623,0.0004009,10]
[314622858,1708462238668,-250.0,0.000401,2]
[314622859,1708462238679,-174.51,0.00040135,2]
[314622860,1708462238689,-154.53,0.00040167,2]
[314622861,1708462238698,-588.37,0.0004017,2]
[314622862,1708462238707,-300.0,0.000402,7]
[314622863,1708462238717,-152.52959545,0.00040322,2]
[314622864,1708462238726,-174.51,0.0004034,2]
[314622865,1708462238736,-3589.33483623,0.0004039,10]
[314622866,1708462238746,-589.49318101,0.000404,7]
[314622867,1708462238755,-1629.48171089,0.000404,5]
[314622868,1708462238765,-323.23,0.000404,2]
[314622869,1708462238774,-715.76,0.00040483,2]
[314622870,1708462238784,-32304.0135261,0.0004049,10]
[314622871,1708462238794,-338.40028005,0.0004049,120]
[314622872,1708462238804,-28408.4705,0.000405,2]
[314622873,1708462238813,-3215.6252,0.000405,2]
[314622874,1708462238822,-174.51,0.00040545,2]
[314622875,1708462238832,-160.4062,0.0004056,2]
[314622876,1708462238840,-175.54438993,0.0004058,2]
[314622877,1708462238850,-17946.6741811,0.0004059,10]
[314622878,1708462238859,-79219.96377963,0.0004059,6]
[314622879,1708462239411,-118.47783817,0.0004059,6]
[314622881,1708462240725,-250.0,0.00039358,2]
[314622882,1708462240735,-944.1528754,0.0004059,6]
[314622883,1708462240745,-1000.0,0.000406,15]
[314622884,1708462240755,-998.59,0.000406,4]
[314622885,1708462240765,-998.59,0.000406,4]
[314622886,1708462240775,-998.59,0.000406,4]
[314622887,1708462240785,-998.59,0.000406,4]
[314622888,1708462240796,-998.59,0.000406,4]
[314622889,1708462240805,-998.59,0.000406,4]
[314622890,1708462240815,-998.59,0.000406,4]
[314622891,1708462240825,-998.59,0.000406,4]
[314622892,1708462240834,-998.59,0.000406,4]
[314622893,1708462240844,-998.59,0.000406,4]
[314622894,1708462240854,-998.59,0.000406,4]
[314622895,1708462240863,-998.59,0.000406,4]
[314622896,1708462240873,-998.59,0.000406,4]
[314622897,1708462240883,-998.59,0.000406,4]
[314622898,1708462240892,-998.59,0.000406,4]
[314622899,1708462240903,-998.59,0.000406,4]
[314622900,1708462240913,-998.59,0.000406,4]
[314622901,1708462240925,-998.59,0.000406,4]
[314622902,1708462240934,-998.59,0.000406,4]
[314622903,1708462240944,-998.59,0.000406,4]
[314622904,1708462240956,-153.16,0.000406,4]
[314622905,1708462240966,-152.52959545,0.0004063,2]
[314622906,1708462240981,-32.75789915,0.0004065,10]
[314622907,1708462240996,-513.84877829,0.0004065,10]
[314622908,1708462241007,-300.0,0.0004065,10]
[314622909,1708462241025,-1950.58610927,0.0004065,10]
[314622910,1708462241046,-39.95740119,0.0004065,10]
[314622911,1708462241062,-4341.51948456,0.0004065,10]
[314622912,1708462241072,-150.0,0.0004066,2]
[314622913,1708462241081,-2525.2473,0.0004066,2]
[314622914,1708462241091,-3745.5889,0.0004066,2]
[314622915,1708462241100,-338.40028004,0.00040662,120]
[314622916,1708462241110,-278.952847,0.000407,2]
[314622917,1708462241119,-528.95403827,0.00040719,2]
[314622918,1708462241129,-244.1,0.00040733,2]
[314622919,1708462241138,-25438.73347957,0.00040744,2]
[314622920,1708462241148,-14476.33863793,0.00040746,10]
[314622921,1708462241160,-1562.72499597,0.00040746,10]
[314622922,1708462241172,-9086.2802197,0.00040746,10]
[314622923,1708462241181,-174.51,0.0004075,2]
[314622924,1708462241191,-3589.33483623,0.0004075,10]
[314622925,1708462241200,-19345.51900831,0.0004076,6]
[314622926,1708462241535,-427.83861856,0.0004076,6]
[314622927,1708462241573,-356.19588052,0.0004076,6]
[314622944,1708462243253,-4432.50346096,0.0004076,6]
[314622945,1708462243266,-802.65195171,0.0004076,6]
[314622946,1708462243279,-1734.03014487,0.0004076,6]
[314622947,1708462243323,-877.77369862,0.0004076,6]
[314622948,1708462243335,-1855.68898327,0.0004076,6]
[314622949,1708462243346,-50450.39274638,0.0004076,6]
[314622950,1708462243356,-150.0,0.00040766,2]
[314622951,1708462243365,-510.894,0.0004077,2]
[314622952,1708462243374,-221523.374,0.0004077,2]
[314622953,1708462243383,-1000.0,0.000408,4]
[314622954,1708462243393,-152.59224558,0.00040819,9]
[314622955,1708462243402,-338.40028004,0.00040834,120]
[314622956,1708462243412,-151.0,0.00040841,4]
[314622957,1708462243424,-1000.0,0.000409,15]
[314622958,1708462243434,-500.0,0.000409,14]
[314622960,1708462243443,-1243.52655647,0.00040901,10]
[314622962,1708462243452,-499.99,0.00040901,2]
[314622963,1708462243461,-80282.5944932,0.00040929,6]
[314622964,1708462243471,-1017.6414,0.00040934,2]
[314622965,1708462243480,-250.0,0.00040935,2]
[314622966,1708462243490,-4110.9535,0.00040935,2]
[314622967,1708462243500,-1000.0,0.00040935,2]
[314622968,1708462243510,-2955.4136,0.00040935,2]
[314622969,1708462243519,-514.64623202,0.00040939,2]
[314622970,1708462243529,-568.1292414,0.00040939,2]
[314622971,1708462243538,-487.03297376,0.00040939,33]
[314622972,1708462243547,-4917.44935576,0.00040939,2]
[314622973,1708462243556,-539.11254859,0.00040939,2]
[314622974,1708462243566,-152.52959545,0.00040939,2]
[314622975,1708462243574,-174.51,0.00040954,2]
[314622976,1708462243584,-1000.0,0.00041,11]
[314622977,1708462243593,-169.0,0.00041,14]
[314622978,1708462243603,-160565.188986,0.00041029,7]
[314622979,1708462243612,-175.54438993,0.00041029,2]
[314622980,1708462243622,-528.95403826,0.00041032,2]
[314622981,1708462243631,-3000.0,0.00041035,7]
[314622982,1708462243641,-381632.21792195,0.00041039,4]
[314622983,1708462243650,-243.63306138,0.00041039,3]
[314622984,1708462243659,-1307.68034758,0.00041039,31]
[314622985,1708462243669,-37448.999999,0.00041039,120]
[314622986,1708462243680,-685.72523154,0.00041039,30]
[314622987,1708462243689,-2166.829695,0.00041039,30]
[314622988,1708462243698,-666.35188951,0.00041039,10]
[314622989,1708462243708,-367.5017417,0.00041039,30]
[314622990,1708462243717,-345.33441467,0.00041039,30]
[314622991,1708462243726,-882.24143847,0.00041039,30]
[314622992,1708462243736,-2988.0,0.00041039,10]
[314622993,1708462243745,-766.09579379,0.00041039,10]
[314622994,1708462243754,-12947.19687442,0.00041039,10]
[314622995,1708462243764,-3736.47215147,0.00041039,120]
[314622996,1708462243775,-1000.0,0.00041039,10]
[314622997,1708462243785,-2627.01490054,0.00041039,30]
[314622998,1708462243795,-36380.78042193,0.00041039,7]
[314622999,1708462243808,-316.220239,0.00041039,7]
[314623000,1708462243837,-400.20172676,0.00041039,7]
[314623001,1708462243849,-831502.79760757,0.00041039,7]
[314623002,1708462243858,-250.16518342,0.00041039,15]
[314623003,1708462243868,-203.00381215,0.00041039,120]
[314623004,1708462243877,-1422.35040092,0.00041039,30]
[314623005,1708462243891,-18612.29475165,0.00041039,10]
[314623006,1708462243903,-3328.19817423,0.00041039,120]
[314623007,1708462243913,-2364.44647282,0.00041039,30]
[314623008,1708462243923,-732.40617307,0.00041039,10]
[314623009,1708462243933,-990.01736007,0.00041039,120]
[314623010,1708462243944,-2057.34646776,0.00041039,120]
[314623011,1708462243953,-2435.55172889,0.00041039,30]
[314623012,1708462243963,-176.04878045,0.00041039,120]
[314623013,1708462243972,-702596.88771191,0.00041039,2]
[314623014,1708462243984,-1014.91098721,0.00041039,2]
[314623015,1708462243993,-2560.84308471,0.00041039,120]
[314623016,1708462244003,-40009.75117924,0.00041039,2]
[314623017,1708462244012,-622.39047036,0.00041039,120]
[314623018,1708462244022,-1950.09729975,0.00041039,2]
[314623019,1708462244032,-172.92373186,0.00041039,30]
[314623020,1708462244041,-1191.8096776,0.00041039,30]
[314623021,1708462244051,-534.07831772,0.00041039,120]
[314623022,1708462244060,-1313.20436366,0.00041039,30]
[314623023,1708462244070,-207.23060306,0.00041039,7]
[314623024,1708462244080,-2286.23334987,0.00041039,30]